fUST/lending_fUST_20251117
["ID","MTS","AMOUNT","RATE_DAILY","PERIOD"]
[394185445,1763362242730,-151.0,0.00027397,7]
[394185446,1763362242739,-151.0,0.00027397,7]
[394185447,1763362242749,-151.0,0.00027397,7]
[394185448,1763362242760,-151.0,0.00027397,7]
[394185449,1763362242769,-151.0,0.00027397,7]
[394185450,1763362242778,-185.477875,0.00027397,7]
[394185451,1763362242788,-151.0,0.00027397,7]
[394185452,1763362242800,-1123.06,0.000274,2]
[394185453,1763362242809,-153.59,0.000274,7]
[394185454,1763362242819,-285.0,0.00027861,2]
[394185455,1763362242828,-500.0,0.00028493,2]
[394185456,1763362242837,-154.273176,0.0002875,2]
[394185457,1763362242847,-446.69824502,0.00029325,2]
[394185458,1763362242857,-1000.0,0.00029548,30]
[394185459,1763362242867,-492.0,0.00029548,30]
[394185461,1763362242876,-253.89987463,0.00029589,2]
[394185462,1763362242885,-312.0,0.00029861,2]
[394185464,1763362242895,-1000.0,0.0003,14]
[394185466,1763362242904,-151.0,0.0003,14]
[394185468,1763362242914,-435.59980476,0.0003015,5]
[394185470,1763362242923,-154.273176,0.00030625,2]
[394185472,1763362242932,-150.0,0.00030853,2]
[394185474,1763362242941,-5857.79,0.000311,7]
[394185476,1763362242950,-244.96,0.000313,14]
[394185478,1763362242959,-183.347,0.00031365,29]
[394185480,1763362242968,-339.0,0.00031861,2]
[394185482,1763362242978,-153.59,0.000323,7]
[394185484,1763362242988,-150.0,0.00032322,2]
[394185486,1763362242997,-154.273176,0.000325,2]
[394185488,1763362243006,-1000.0,0.00032502,30]
[394185490,1763362243015,-791.0,0.00032502,30]
[394185492,1763362243025,-14999.97,0.00032547,2]
[394185494,1763362243034,-150.0,0.00032876,3]
[394185496,1763362243043,-150.0,0.00032876,10]
[394185498,1763362243053,-2439.84,0.00032877,10]
[394185500,1763362243063,-4215.68,0.00032877,10]
[394185502,1763362243073,-3513.07,0.00032877,10]
[394185504,1763362243082,-509.47955205,0.00032877,7]
[394185506,1763362243092,-500.0,0.00032877,7]
[394185508,1763362243101,-181.77634872,0.000332,117]
[394185510,1763362243114,-837.00259935,0.0003379,7]
[394185512,1763362243123,-150.0,0.00033792,2]
[394185514,1763362243132,-366.0,0.00033861,120]
[394185516,1763362243142,-5000.0,0.00033944,2]
[394185518,1763362243152,-1000.0,0.0003419,14]
[394185520,1763362243161,-150.0,0.00034999,13]
[394185522,1763362243171,-186.28,0.00035261,2]
[394185524,1763362243180,-1000.0,0.00035752,30]
[394185527,1763362243192,-1000.0,0.00035752,30]
[394185529,1763362243201,-393.0,0.00035861,120]
[394185531,1763362243214,-165.22064318,0.00036,90]
[394185533,1763362243224,-232.86,0.0003673,2]
[394185535,1763362243233,-1123.06,0.000374,14]
[394185537,1763362243243,-244.96,0.000374,30]
[394185539,1763362243252,-150.0,0.00037799,14]
[394185542,1763362243261,-150.0,0.00037799,15]
[394185543,1763362243271,-420.0,0.00037861,120]
[394185545,1763362243280,-3054.01569931,0.00037942,2]
[394185548,1763362243289,-200.0,0.00038,120]
[394185550,1763362243299,-279.43,0.00038199,2]
[394185552,1763362243307,-203.21851301,0.00038249,10]
[394185554,1763362243316,-151.0,0.0003825,31]
[394185556,1763362243326,-151.0,0.0003825,31]
[394185558,1763362243335,-151.0,0.0003825,31]
[394185560,1763362243344,-151.0,0.0003825,31]
[394185562,1763362243355,-151.0,0.0003825,30]
[394185564,1763362243363,-151.0,0.0003825,31]
[394185566,1763362243372,-151.0,0.0003825,30]
[394185567,1763362243381,-151.0,0.0003825,30]
[394185569,1763362243390,-151.0,0.0003825,31]
[394185571,1763362243399,-151.0,0.0003825,31]
[394185573,1763362243408,-151.0,0.0003825,31]
[394185575,1763362243417,-151.0,0.0003825,31]
[394185577,1763362243426,-157.673838,0.0003825,31]
[394185579,1763362243436,-151.0,0.0003825,31]
[394185581,1763362243445,-151.0,0.0003825,31]
[394185583,1763362243454,-163.12784728,0.0003825,31]
[394185585,1763362243463,-151.0,0.0003825,31]
[394185587,1763362243473,-3054.01569931,0.00038319,2]
[394185589,1763362243482,-151.0,0.00038341,31]
[394185591,1763362243491,-152.662079,0.00038341,31]
[394185593,1763362243500,-151.0,0.00038341,31]
[394185595,1763362243509,-151.0,0.00038341,31]
[394185597,1763362243518,-151.0,0.00038341,31]
[394185599,1763362243528,-151.0,0.00038341,31]
[394185601,1763362243537,-151.0,0.00038341,31]
[394185603,1763362243546,-151.0,0.00038341,31]
[394185605,1763362243555,-151.0,0.00038341,31]
[394185607,1763362243564,-151.0,0.00038341,31]
[394185609,1763362243573,-151.0,0.00038341,31]
[394185611,1763362243582,-151.0,0.00038341,31]
[394185613,1763362243591,-151.0,0.00038341,31]
[394185621,1763362243657,-151.0,0.00038341,31]
[394185623,1763362243666,-151.0,0.00038341,31]
[394185625,1763362243675,-151.0,0.00038341,31]
[394185627,1763362243684,-151.0,0.00038341,31]
[394185629,1763362243693,-151.0,0.00038341,31]
[394185631,1763362243702,-151.0,0.00038341,30]
[394185633,1763362243712,-178.578862,0.00038341,31]
[394185635,1763362243724,-151.000062,0.00038341,31]
[394185637,1763362243734,-151.0,0.00038341,31]
[394185639,1763362243743,-159.953345,0.00038341,31]
[394185641,1763362243752,-151.0,0.00038341,31]
[394185643,1763362243762,-151.0,0.00038341,31]
[394185645,1763362243771,-151.0,0.00038341,31]
[394185647,1763362243780,-151.0,0.00038341,31]
[394185649,1763362243789,-159.420878,0.00038341,31]
[394185651,1763362243801,-222.305532,0.00038341,31]
[394185653,1763362243811,-222.305532,0.00038341,31]
[394185655,1763362243821,-151.0,0.00038341,31]
[394185657,1763362243830,-222.305532,0.00038341,31]
[394185659,1763362243839,-151.0,0.00038341,31]
[394185661,1763362243848,-222.305532,0.00038341,31]
[394185663,1763362243857,-151.0,0.00038341,31]
[394185665,1763362243866,-151.0,0.00038341,31]
[394185667,1763362243875,-151.0,0.00038341,31]
[394185669,1763362243884,-151.0,0.00038341,31]
[394185671,1763362243894,-151.0,0.00038341,31]
[394185673,1763362243903,-151.0,0.00038341,31]
[394185675,1763362243912,-151.0,0.00038341,31]
[394185677,1763362243922,-151.0,0.00038341,31]
[394185679,1763362243931,-151.0,0.00038341,31]
[394185681,1763362243940,-603.762751,0.00038341,31]
[394185683,1763362243949,-603.762751,0.00038341,31]
[394185685,1763362243959,-603.762751,0.00038341,31]
[394185687,1763362243968,-603.762751,0.00038341,31]
[394185689,1763362243978,-151.0,0.00038341,7]
[394185691,1763362243987,-151.0,0.00038341,31]
[394185693,1763362243996,-151.0,0.00038341,31]
[394185695,1763362244006,-151.0,0.00038341,31]
[394185697,1763362244015,-172.305842,0.00038341,31]
[394185699,1763362244024,-664.634169,0.00038341,31]
[394185701,1763362244033,-172.305842,0.00038341,31]
[394185703,1763362244042,-664.634169,0.00038341,31]
[394185704,1763362244051,-664.634169,0.00038341,31]
[394185707,1763362244061,-172.305842,0.00038341,31]
[394185709,1763362244070,-664.634169,0.00038341,31]
[394185710,1763362244079,-172.305842,0.00038341,31]
[394185712,1763362244088,-151.0,0.00038341,31]
[394185714,1763362244097,-157.559401,0.00038341,31]
[394185716,1763362244107,-151.0,0.00038341,31]
[394185718,1763362244116,-151.0,0.00038341,31]
[394185721,1763362244126,-170.76959,0.00038341,31]
[394185722,1763362244135,-170.76959,0.00038341,31]
[394185725,1763362244144,-180.086447,0.00038341,31]
[394185726,1763362244153,-180.086447,0.00038341,31]
[394185729,1763362244163,-170.76959,0.00038341,31]
[394185731,1763362244172,-180.086447,0.00038341,31]
[394185733,1763362244182,-170.76959,0.00038341,31]
[394185735,1763362244191,-180.086447,0.00038341,31]
[394185737,1763362244200,-151.0,0.00038342,31]
[394185739,1763362244210,-151.0,0.00038342,31]
[394185741,1763362244220,-151.0,0.00038342,31]
[394185743,1763362244234,-191.755067,0.00038342,31]
[394185746,1763362244251,-191.755067,0.00038342,31]
[394185749,1763362244266,-191.755067,0.00038342,31]
[394185751,1763362244281,-191.755067,0.00038342,31]
[394185754,1763362244296,-151.0,0.00038342,31]
[394185757,1763362244312,-151.0,0.00038342,31]
[394185759,1763362244327,-151.0,0.00038342,31]
[394185762,1763362244342,-151.0,0.00038342,31]
[394185764,1763362244356,-151.0,0.00038342,31]
[394185767,1763362244369,-151.0,0.00038342,31]
[394185769,1763362244383,-151.0,0.00038342,31]
[394185772,1763362244399,-292.22192,0.00038342,31]
[394185774,1763362244412,-292.22192,0.00038342,31]
[394185777,1763362244425,-2073.120455,0.00038342,28]
[394185779,1763362244439,-292.22192,0.00038342,31]
[394185782,1763362244453,-2073.120455,0.00038342,28]
[394185784,1763362244468,-292.22192,0.00038342,31]
[394185787,1763362244483,-2073.120455,0.00038342,28]
[394185790,1763362244498,-2073.120455,0.00038342,28]
[394185792,1763362244509,-291.639899,0.00038342,31]
[394185794,1763362244521,-151.0,0.00038342,2]
[394185797,1763362244537,-151.0,0.00038342,2]
[394185799,1763362244551,-151.0,0.00038342,31]
[394185802,1763362244562,-151.0,0.00038342,2]
[394185804,1763362244576,-151.0,0.00038342,31]
[394185806,1763362244588,-151.0,0.00038342,31]
[394185809,1763362244599,-151.0,0.00038342,31]
[394185811,1763362244612,-151.0,0.00038342,31]
[394185813,1763362244624,-151.0,0.00038342,31]
[394185816,1763362244636,-151.0,0.00038342,31]
[394185818,1763362244648,-151.0,0.00038342,31]
[394185820,1763362244661,-151.0,0.00038342,31]
[394185823,1763362244673,-262.707975,0.00038342,31]
[394185825,1763362244687,-151.0,0.00038342,31]
[394185827,1763362244699,-151.0,0.00038342,31]
[394185829,1763362244712,-229.347791,0.00038342,15]
[394185832,1763362244727,-229.347791,0.00038342,15]
[394185834,1763362244739,-229.347791,0.00038342,15]
[394185836,1763362244752,-229.347791,0.00038342,15]
[394185839,1763362244765,-276.510576,0.00038342,31]
[394185841,1763362244777,-270.477494,0.00038342,31]
[394185842,1763362244790,-151.0,0.00038342,31]
[394185844,1763362244802,-151.0,0.00038342,31]
[394185847,1763362244814,-276.510576,0.00038342,31]
[394185849,1763362244826,-270.477494,0.00038342,31]
[394185851,1763362244838,-276.510576,0.00038342,31]
[394185853,1763362244851,-270.477494,0.00038342,31]
[394185856,1763362244863,-151.0,0.00038342,31]
[394185858,1763362244875,-276.510576,0.00038342,31]
[394185860,1763362244888,-270.477494,0.00038342,31]
[394185862,1763362244900,-274.425893,0.00038342,31]
[394185865,1763362244913,-298.574278,0.00038342,31]
[394185867,1763362244925,-151.0,0.00038342,31]
[394185869,1763362244938,-298.574278,0.00038342,31]
[394185872,1763362244950,-298.574278,0.00038342,31]
[394185873,1763362244960,-298.574278,0.00038342,31]
[394185875,1763362244970,-151.0,0.00038342,31]
[394185877,1763362244980,-151.0,0.00038342,31]
[394185891,1763362245101,-151.0,0.00038342,31]
[394185894,1763362245117,-151.0,0.00038342,31]
[394185896,1763362245127,-151.0,0.00038342,31]
[394185898,1763362245137,-151.0,0.00038342,31]
[394185900,1763362245147,-151.0,0.00038342,31]
[394185902,1763362245157,-151.0,0.00038342,31]
[394185903,1763362245166,-151.0,0.00038342,31]
[394185905,1763362245176,-486.093166,0.00038342,31]
[394185908,1763362245187,-486.093166,0.00038342,31]
[394185910,1763362245196,-486.093166,0.00038342,31]
[394185912,1763362245205,-151.0,0.00038342,31]
[394185914,1763362245216,-248.11286639,0.00038342,31]
[394185938,1763362245453,-2927.56,0.00032877,10]
[394185940,1763362245464,-237.98029961,0.00038342,31]
[394185942,1763362245473,-151.0,0.00038342,31]
[394185944,1763362245482,-155.514538,0.00038342,31]
[394185946,1763362245491,-151.0,0.00038342,31]
[394185948,1763362245500,-151.0,0.00038342,31]
[394185949,1763362245509,-151.0,0.00038342,31]
[394185951,1763362245518,-151.0,0.00038342,31]
[394185953,1763362245527,-151.0,0.00038342,31]
[394185955,1763362245537,-201.521454,0.00038342,31]
[394185957,1763362245546,-163.257852,0.00038342,31]
[394185959,1763362245555,-163.257852,0.00038342,31]
[394185961,1763362245564,-163.257852,0.00038342,31]
[394185963,1763362245573,-151.0,0.00038342,31]
[394185965,1763362245582,-163.257852,0.00038342,31]
[394185967,1763362245591,-151.0,0.00038342,31]
[394185969,1763362245600,-151.0,0.00038342,31]
[394185971,1763362245609,-151.0,0.00038342,31]
[394185972,1763362245618,-151.0,0.00038342,31]
[394185974,1763362245627,-151.0,0.00038342,31]
[394185976,1763362245637,-151.0,0.00038342,31]
[394185978,1763362245646,-151.0,0.00038342,31]
[394185980,1763362245655,-165.173602,0.00038342,31]
[394185982,1763362245665,-165.173602,0.00038342,31]
[394185984,1763362245675,-165.173602,0.00038342,31]
[394185986,1763362245684,-165.173602,0.00038342,31]
[394185987,1763362245693,-151.0,0.00038345,31]
[394185988,1763362245702,-151.0,0.00038345,31]
[394185989,1763362245713,-154.933687,0.00038345,31]
[394185990,1763362245726,-154.112667,0.00038345,7]
[394185991,1763362245736,-151.0,0.00038345,31]
[394185992,1763362245746,-154.112667,0.00038345,7]
[394185993,1763362245755,-154.112667,0.00038345,7]
[394185994,1763362245764,-3827.318075,0.00038345,31]
[394185995,1763362245774,-151.0,0.00038345,2]
[394185996,1763362245783,-154.112667,0.00038345,7]
[394185997,1763362245793,-3827.318075,0.00038345,31]
[394185998,1763362245803,-3827.318075,0.00038345,31]
[394185999,1763362245813,-153.328167,0.00038345,31]
[394186000,1763362245822,-151.0,0.00038345,31]
[394186001,1763362245832,-3827.318075,0.00038345,31]
[394186002,1763362245842,-153.328167,0.00038345,31]
[394186003,1763362245852,-151.0,0.00038345,31]
[394186004,1763362245861,-298.259429,0.00038345,31]
[394186005,1763362245871,-153.328167,0.00038345,31]
[394186006,1763362245880,-153.328167,0.00038345,31]
[394186007,1763362245889,-151.0,0.00038345,31]
[394186008,1763362245899,-151.0,0.00038345,31]
[394186009,1763362245909,-151.0,0.00038345,31]
[394186010,1763362245918,-151.0,0.00038345,31]
[394186011,1763362245927,-151.0,0.00038345,31]
[394186012,1763362245937,-209.30624,0.00038345,31]
[394186013,1763362245947,-6016.25829892,0.00038345,2]
[394186019,1763362246024,-151.0,0.000249,7]
[394186021,1763362246033,-151.0,0.000249,7]
[394186024,1763362246043,-151.0,0.00027397,7]
[394186026,1763362246052,-151.0,0.00038345,31]
[394186027,1763362246061,-151.0,0.00038345,31]
[394186029,1763362246071,-4925.94190064,0.00038345,2]
[394186051,1763362246277,-3e-08,0.00038345,2]
[394186059,1763362246348,-586.07902545,0.00038345,2]
[394186070,1763362246462,-151.0,0.000249,7]
[394186071,1763362246471,-210.271141,0.00027397,7]
[394186072,1763362246480,-151.0,0.00038345,31]
[394186073,1763362246489,-159.896851,0.00038345,31]
[394186074,1763362246498,-56296.28868819,0.00038345,2]
[394186075,1763362246511,-560.0,0.00038345,2]
[394186087,1763362247754,-657.84729224,0.00038345,2]
[394186088,1763362247794,-2040.01185648,0.00037815,2]
[394186089,1763362247805,-93.31558795,0.00037815,2]
[394186090,1763362247814,-3054.01569932,0.00037934,2]
[394186091,1763362247824,-2133.32744444,0.00038172,2]
[394186092,1763362247833,-3054.01569933,0.00038236,2]
[394186093,1763362247842,-1189.05988389,0.00038345,2]
[394186094,1763362247854,-1448.3096139,0.00038345,2]
[394186095,1763362266245,-356.68555753,0.0001775,3]
[394186096,1763362302785,238.996,0.00017405,2]
[394186099,1763362453189,318.368229,0.00013699,2]
[394186100,1763362474881,665.927768,0.00016753,2]
[394186101,1763362716227,-197.20331255,0.00017649,2]
[394186102,1763362719667,-204.0,0.00017649,2]
[394186103,1763362721077,-248.80051572,0.00017649,2]
[394186104,1763362723097,-495.01262761,0.00017649,2]
[394186106,1763362739147,191.9205564,0.00016693,2]
[394186107,1763363101809,495.01262761,0.0001746,2]
[394186108,1763363243107,-256.10164358,0.00017548,2]
[394186109,1763363283237,5225.01172945,0.0001747,2]
[394186322,1763363350414,1497.3946337,0.00016707,2]
[394186323,1763363370068,-231.5892926,0.00017548,2]
[394186324,1763363370089,-1830.0,0.00017548,2]
[394186325,1763363370112,-150.0,0.00017554,2]
[394186326,1763363370132,-1200.0,0.00017566,2]
[394186327,1763363370152,-300.0,0.00017566,2]
[394186328,1763363370171,-180.59355181,0.00017566,2]
[394186329,1763363370193,-572.26304658,0.00017566,2]
[394186330,1763363370215,-572.26304658,0.00017566,2]
[394186331,1763363370237,-572.26304658,0.00017566,2]
[394186332,1763363370259,-563.54169253,0.00017566,2]
[394186333,1763363372090,-8.72135405,0.00017566,2]
[394186334,1763363372111,-493.22631676,0.00017566,2]
[394186335,1763363398000,7955.37690093,0.00017466,2]
[394186336,1763363399928,7955.37690092,0.00017467,2]
[394186337,1763363401988,7955.37690092,0.00017469,2]
[394186338,1763363404037,7955.37690092,0.0001747,2]
[394186339,1763363405948,7955.37690092,0.00017471,2]
[394186351,1763363437903,-300.0,0.00017565,2]
[394186352,1763363437914,-1200.0,0.00017565,2]
[394186353,1763363437925,-300.0,0.00017565,2]
[394186354,1763363437935,-300.0,0.00017565,2]
[394186355,1763363437945,-300.0,0.00017565,2]
[394186356,1763363437955,-500.0,0.00017565,2]
[394186357,1763363437964,-500.0,0.00017565,2]
[394186358,1763363437973,-481.08831387,0.00017565,2]
[394186359,1763363437983,-500.0,0.00017565,2]
[394186360,1763363437993,-500.0,0.00017565,2]
[394186361,1763363438002,-500.0,0.00017565,2]
[394186362,1763363438012,-500.0,0.00017565,2]
[394186363,1763363438020,-500.0,0.00017565,2]
[394186364,1763363438029,-500.0,0.00017565,2]
[394186365,1763363438039,-500.0,0.00017565,2]
[394186366,1763363438048,-500.0,0.00017565,2]
[394186367,1763363438057,-500.0,0.00017565,2]
[394186368,1763363438065,-500.0,0.00017565,2]
[394186369,1763363438074,-500.0,0.00017565,2]
[394186370,1763363438083,-500.0,0.00017565,2]
[394186371,1763363438093,-500.0,0.00017565,2]
[394186372,1763363438103,-500.0,0.00017565,2]
[394186373,1763363438113,-500.0,0.00017565,2]
[394186374,1763363438123,-500.0,0.00017565,2]
[394186375,1763363438132,-500.0,0.00017565,2]
[394186376,1763363438142,-500.0,0.00017565,2]
[394186377,1763363438151,-413.97252713,0.00017565,2]
[394186378,1763363438160,-571.60582203,0.00017565,2]
[394186379,1763363438170,-398.57926404,0.00017565,2]
[394186380,1763363438179,-500.0,0.00017565,2]
[394186381,1763363438189,-500.0,0.00017565,2]
[394186382,1763363438198,-500.0,0.00017565,2]
[394186383,1763363438208,-500.0,0.00017565,2]
[394186384,1763363438218,-500.0,0.00017565,2]
[394186385,1763363438227,-500.0,0.00017565,2]
[394186386,1763363438236,-500.0,0.00017565,2]
[394186387,1763363438247,-500.0,0.00017565,2]
[394186388,1763363438256,-500.0,0.00017565,2]
[394186389,1763363438266,-399.31248001,0.00017565,2]
[394186390,1763363438275,-500.0,0.00017565,2]
[394186391,1763363438288,-571.60582203,0.00017565,2]
[394186392,1763363438298,-500.0,0.00017565,2]
[394186393,1763363438308,-500.0,0.00017565,2]
[394186394,1763363438317,-500.0,0.00017565,2]
[394186395,1763363438331,-416.97812104,0.00017565,2]
[394186396,1763363438340,-500.0,0.00017565,2]
[394186397,1763363438350,-500.0,0.00017565,2]
[394186398,1763363438360,-500.0,0.00017565,2]
[394186399,1763363438372,-423.45099256,0.00017565,2]
[394186400,1763363438381,-571.60582203,0.00017565,2]
[394186401,1763363438390,-500.0,0.00017565,2]
[394186402,1763363438400,-356.15301124,0.00017565,2]
[394186403,1763363438409,-500.0,0.00017565,2]
[394186404,1763363438419,-500.0,0.00017565,2]
[394186405,1763363438428,-500.0,0.00017565,2]
[394186406,1763363438438,-500.0,0.00017565,2]
[394186407,1763363438447,-500.0,0.00017565,2]
[394186408,1763363438457,-571.60582203,0.00017565,2]
[394186409,1763363438466,-500.0,0.00017565,2]
[394186410,1763363438475,-500.0,0.00017565,2]
[394186411,1763363438485,-500.0,0.00017565,2]
[394186412,1763363438495,-500.0,0.00017565,2]
[394186413,1763363438504,-500.0,0.00017565,2]
[394186414,1763363438514,-500.0,0.00017565,2]
[394186415,1763363438524,-571.60582203,0.00017565,2]
[394186416,1763363438534,-500.0,0.00017565,2]
[394186417,1763363438543,-500.0,0.00017565,2]
[394186418,1763363438552,-500.0,0.00017565,2]
[394186419,1763363438561,-500.0,0.00017565,2]
[394186420,1763363438571,-571.60582203,0.00017565,2]
[394186421,1763363438580,-500.0,0.00017565,2]
[394186422,1763363438590,-500.0,0.00017565,2]
[394186423,1763363438599,-500.0,0.00017565,2]
[394186424,1763363438608,-194.05805288,0.00017565,2]
[394186425,1763363438617,-500.0,0.00017565,2]
[394186426,1763363438627,-571.60582203,0.00017565,2]
[394186427,1763363438637,-500.0,0.00017565,2]
[394186428,1763363438646,-500.0,0.00017565,2]
[394186429,1763363438656,-500.0,0.00017565,2]
[394186430,1763363438665,-500.0,0.00017565,2]
[394186431,1763363438675,-500.0,0.00017565,2]
[394186432,1763363438684,-500.0,0.00017565,2]
[394186433,1763363438694,-571.60582203,0.00017565,2]
[394186434,1763363438703,-500.0,0.00017565,2]
[394186435,1763363438713,-500.0,0.00017565,2]
[394186436,1763363438723,-500.0,0.00017565,2]
[394186437,1763363438733,-500.0,0.00017565,2]
[394186438,1763363438742,-571.60582203,0.00017565,2]
[394186439,1763363438753,-500.0,0.00017565,2]
[394186440,1763363438762,-500.0,0.00017565,2]
[394186441,1763363438772,-500.0,0.00017565,2]
[394186442,1763363438782,-571.60582203,0.00017565,2]
[394186443,1763363438794,-500.0,0.00017565,2]
[394186444,1763363438804,-500.0,0.00017565,2]
[394186445,1763363438814,-500.0,0.00017565,2]
[394186446,1763363438824,-500.0,0.00017565,2]
[394186447,1763363438834,-500.0,0.00017565,2]
[394186448,1763363438844,-571.60582203,0.00017565,2]
[394186449,1763363438854,-500.0,0.00017565,2]
[394186450,1763363438863,-500.0,0.00017565,2]
[394186451,1763363438873,-500.0,0.00017565,2]
[394186452,1763363438883,-500.0,0.00017565,2]
[394186453,1763363438893,-500.0,0.00017565,2]
[394186454,1763363438903,-571.60582203,0.00017565,2]
[394186455,1763363438912,-500.0,0.00017565,2]
[394186456,1763363438922,-500.0,0.00017565,2]
[394186457,1763363438932,-571.60582203,0.00017565,2]
[394186458,1763363438942,-500.0,0.00017565,2]
[394186459,1763363438952,-500.0,0.00017565,2]
[394186460,1763363438962,-500.0,0.00017565,2]
[394186461,1763363438972,-571.60582203,0.00017565,2]
[394186462,1763363438982,-547.50791043,0.00017565,2]
[394186463,1763363438992,-500.0,0.00017565,2]
[394186464,1763363439002,-500.0,0.00017565,2]
[394186465,1763363439011,-571.60582203,0.00017565,2]
[394186466,1763363439020,-500.0,0.00017565,2]
[394186467,1763363439030,-500.0,0.00017565,2]
[394186468,1763363439039,-500.0,0.00017565,2]
[394186469,1763363439047,-500.0,0.00017565,2]
[394186470,1763363439057,-571.60582203,0.00017565,2]
[394186471,1763363439067,-500.0,0.00017565,2]
[394186472,1763363439076,-500.0,0.00017565,2]
[394186473,1763363439086,-500.0,0.00017565,2]
[394186474,1763363439095,-500.0,0.00017565,2]
[394186475,1763363439105,-571.60582203,0.00017565,2]
[394186476,1763363439114,-500.0,0.00017565,2]
[394186477,1763363439123,-571.60582203,0.00017565,2]
[394186478,1763363439132,-571.60582203,0.00017565,2]
[394186479,1763363439141,-571.60582203,0.00017565,2]
[394186480,1763363439151,-500.0,0.00017565,2]
[394186481,1763363439160,-571.60582203,0.00017565,2]
[394186482,1763363439171,-571.60582203,0.00017565,2]
[394186483,1763363439180,-571.60582203,0.00017565,2]
[394186484,1763363439190,-571.60582203,0.00017565,2]
[394186485,1763363439200,-571.60582203,0.00017565,2]
[394186486,1763363439210,-571.60582203,0.00017565,2]
[394186487,1763363439219,-571.60582203,0.00017565,2]
[394186488,1763363439229,-571.60582203,0.00017565,2]
[394186489,1763363439238,-571.60582203,0.00017565,2]
[394186490,1763363439248,-571.60582203,0.00017565,2]
[394186491,1763363439259,-500.0,0.00017566,2]
[394186492,1763363439268,-890000.0,0.00017567,2]
[394186493,1763363439278,-269.0,0.00017577,2]
[394186494,1763363439290,-554.86098729,0.00017582,2]
[394186495,1763363439299,-500.0,0.000176,2]
[394186496,1763363439309,-219.99,0.00017649,2]
[394186497,1763363439319,-151.0,0.0001766,2]
[394186498,1763363439328,-151.0,0.0001766,2]
[394186499,1763363439338,-151.0,0.0001766,2]
[394186500,1763363439352,-151.0,0.0001766,2]
[394186501,1763363439362,-151.0,0.0001766,2]
[394186502,1763363439374,-151.0,0.0001766,2]
[394186503,1763363439383,-151.0,0.0001766,2]
[394186504,1763363439393,-151.0,0.0001766,2]
[394186505,1763363439403,-151.0,0.0001766,2]
[394186506,1763363439412,-270.73879904,0.0001766,2]
[394186507,1763363439423,-3684.98,0.00017662,3]
[394186508,1763363439432,-1842.49,0.00017662,3]
[394186509,1763363439443,-921.25,0.00017662,3]
[394186511,1763363439530,-460.62,0.00017662,3]
[394186512,1763363439541,-500.0,0.00017666,2]
[394186513,1763363439551,-328.01610158,0.00017666,2]
[394186514,1763363439561,-333.64945345,0.00017666,2]
[394186515,1763363439570,-191.196,0.00017667,2]
[394186516,1763363439579,-775.08,0.0001767,2]
[394186518,1763363439589,-775.08,0.0001767,2]
[394186519,1763363439597,-775.08,0.0001767,2]
[394186520,1763363439606,-775.08,0.0001767,2]
[394186521,1763363439615,-775.08,0.0001767,2]
[394186522,1763363439624,-775.08,0.0001767,2]
[394186523,1763363439633,-775.08,0.0001767,2]
[394186524,1763363439643,-775.08,0.0001767,2]